bitfinex/quotes_BTCUSD_20250115
["timestamp","ask_amount","ask_price","bid_price","bid_amount"]
[1736931654283,0.0018432,97382.0,97381.0,0.63960006]
[1736931654707,0.0028432,97382.0,97381.0,0.65821845]
[1736931654910,0.0028432,97382.0,97381.0,0.76958391]
[1736931655753,0.0028432,97382.0,97381.0,0.67745524]
[1736931656315,0.0028432,97382.0,97381.0,0.68245524]
[1736931656956,0.0028432,97382.0,97381.0,0.69272804]
[1736931657358,0.0028432,97382.0,97381.0,1.23732804]
[1736931658457,0.0028432,97382.0,97381.0,1.32945671]
[1736931659037,0.0028432,97382.0,97381.0,1.35020408]
[1736931659248,0.0028432,97382.0,97381.0,1.25807541]
[1736931659451,0.0028432,97382.0,97381.0,1.24780261]
[1736931660672,0.0028432,97382.0,97381.0,1.02705524]
[1736931661079,0.0028432,97382.0,97381.0,1.0193601]
[1736931661526,0.0018432,97382.0,97381.0,1.0103601]
[1736931661675,0.01794831,97382.0,97381.0,1.0103601]
[1736931661882,0.01894831,97382.0,97381.0,1.0193601]
[1736931662072,0.01894831,97382.0,97381.0,0.7914601]
[1736931662278,0.0028432,97382.0,97381.0,0.7914601]
[1736931662513,0.0038432,97382.0,97381.0,0.7954601]
[1736931662729,0.0028432,97382.0,97381.0,0.7894601]
[1736931663215,0.0038432,97382.0,97381.0,0.7954601]
[1736931663956,0.0038432,97382.0,97381.0,0.8004601]
[1736931664908,0.0038432,97382.0,97381.0,0.6781601]
[1736931665261,0.0199485,97382.0,97381.0,0.6781601]
[1736931665477,0.0038432,97382.0,97381.0,0.6781601]
[1736931666297,0.0038432,97382.0,97381.0,0.65892331]
[1736931668410,0.01994856,97382.0,97381.0,0.65892331]
[1736931672923,0.01982495,97382.0,97381.0,0.65892331]
[1736931673077,0.00371959,97382.0,97381.0,0.65892331]
[1736931674495,0.00371959,97382.0,97381.0,0.666598]
[1736931677752,0.01982493,97382.0,97381.0,0.666598]
[1736931677935,0.01982493,97382.0,97381.0,0.65892331]
[1736931680526,0.01982493,97382.0,97381.0,0.66662627]
[1736931681604,0.01982493,97382.0,97381.0,0.67893973]
[1736931682258,0.00371959,97382.0,97381.0,0.67893973]
[1736931683081,0.00371959,97382.0,97381.0,0.76083973]
[1736931683513,0.00371959,97382.0,97381.0,0.90603973]
[1736931683925,0.00371959,97382.0,97381.0,0.90689333]
[1736931685920,0.00371959,97382.0,97381.0,0.771922]
[1736931686851,0.00371959,97382.0,97381.0,0.57556641]
[1736931687878,0.00171959,97382.0,97381.0,0.56656641]
[1736931688057,0.00171959,97382.0,97381.0,0.36518841]
[1736931688259,0.07881959,97382.0,97381.0,0.37018841]
[1736931688459,0.07881959,97382.0,97381.0,0.35787495]
[1736931688862,0.07881959,97382.0,97381.0,0.34387495]
[1736931689060,0.07781959,97382.0,97381.0,0.34387495]
[1736931689657,0.07781959,97382.0,97381.0,0.33425656]
[1736931689834,0.07781959,97382.0,97381.0,0.3265536]
[1736931690489,0.07781959,97382.0,97381.0,0.3295536]
[1736931690721,0.09392598,97382.0,97381.0,0.3295536]
[1736931691145,0.09492598,97382.0,97381.0,0.3375536]
[1736931691350,0.09492598,97382.0,97381.0,0.3295536]
[1736931691754,0.09592598,97382.0,97381.0,0.3345536]
[1736931692078,0.09592598,97382.0,97381.0,0.3375536]
[1736931692855,0.07981959,97382.0,97381.0,0.3375536]
[1736931694932,0.07981959,97382.0,97381.0,0.34717624]
[1736931695943,0.0959259,97382.0,97381.0,0.34717624]
[1736931702138,0.07981959,97382.0,97381.0,0.34717624]
[1736931703661,0.00371959,97382.0,97381.0,0.34717624]
[1736931706796,0.00371959,97382.0,97381.0,0.3375536]
[1736931710871,0.00371959,97382.0,97381.0,0.3345536]
[1736931710872,0.08031959,97382.0,97381.0,0.3345536]
[1736931711106,0.10131959,97382.0,97381.0,0.3265536]
[1736931711331,0.32865174,97382.0,97381.0,0.3285536]
[1736931711792,0.34475902,97382.0,97381.0,0.3265536]
[1736931711984,0.34575902,97382.0,97381.0,0.3345536]
[1736931712153,0.34475902,97382.0,97381.0,0.3275536]
[1736931712406,0.26742687,97382.0,97381.0,0.3295536]
[1736931713592,0.26742687,97382.0,97381.0,0.3285536]
[1736931713785,0.26742687,97382.0,97381.0,0.3265536]
[1736931713993,0.26742687,97382.0,97381.0,0.0008536]
[1736931713994,0.25131959,97382.0,97381.0,0.0008536]
[1736931714445,0.25131959,97382.0,97381.0,0.0028536]
[1736931715164,0.25131959,97382.0,97381.0,0.0008536]
[1736931715341,0.25131959,97382.0,97381.0,0.0028536]
[1736931717115,0.44787866,97382.0,97381.0,0.0008536]
[1736931717303,0.44787866,97382.0,97381.0,0.0028536]
[1736931718127,0.44787866,97382.0,97381.0,0.0008536]
[1736931718507,0.44787866,97382.0,97381.0,0.0018536]
[1736931720079,0.49347866,97382.0,97381.0,0.0018536]
[1736931720888,0.40114651,97382.0,97381.0,0.0008536]
[1736931721189,0.40714651,97382.0,97381.0,0.0008536]
[1736931721393,0.42325572,97382.0,97381.0,0.0008536]
[1736931721688,0.42725572,97382.0,97381.0,0.0008536]
[1736931722254,0.41725572,97382.0,97381.0,0.0008536]
[1736931722461,0.40114651,97382.0,97381.0,0.0008536]
[1736931723764,0.40314651,97382.0,97381.0,0.0008536]
[1736931723951,0.40514651,97382.0,97381.0,0.0008536]
[1736931724459,0.40514651,97382.0,97381.0,0.0018536]
[1736931725445,0.42125536,97382.0,97381.0,0.0018536]
[1736931725848,0.52548228,97382.0,97381.0,0.0018536]
[1736931726072,0.50937343,97382.0,97381.0,0.0018536]
[1736931727791,0.50637343,97382.0,97381.0,0.0008536]
[1736931728001,0.50837343,97382.0,97381.0,0.0008536]
[1736931728408,0.50737343,97382.0,97381.0,0.0008536]
[1736931728630,0.50837343,97382.0,97381.0,0.0008536]
[1736931730314,0.52448258,97382.0,97381.0,0.0008536]
[1736931732357,0.50837343,97382.0,97381.0,0.0008536]
[1736931735153,0.52448264,97382.0,97381.0,0.0008536]
[1736931737874,0.52148264,97382.0,97381.0,0.0008536]
[1736931738085,0.52348264,97382.0,97381.0,0.0008536]
[1736931738509,0.35541,97366.0,97365.0,0.0008538]
[1736931738713,0.5102315,97366.0,97365.0,0.0008538]
[1736931739278,0.52634134,97366.0,97365.0,0.0008538]
[1736931739487,0.54934134,97366.0,97365.0,0.0008538]
[1736931740043,0.65356826,97366.0,97365.0,0.0048538]
[1736931740258,0.65356826,97366.0,97365.0,0.0008538]
[1736931740661,0.65756826,97366.0,97365.0,0.0018538]
[1736931740887,0.68586511,97366.0,97365.0,0.0018538]
[1736931741097,0.68586511,97366.0,97365.0,0.0008538]
[1736931741307,0.68986511,97366.0,97365.0,0.0008538]
[1736931741510,0.69186511,97366.0,97365.0,0.0008538]
[1736931741930,0.65956826,97366.0,97365.0,0.0008538]
[1736931742394,0.77010472,97366.0,97365.0,0.0008538]
[1736931742597,0.80240157,97366.0,97365.0,0.0008538]
[1736931742814,0.80740157,97366.0,97365.0,0.0018538]
[1736931742987,0.77510472,97366.0,97365.0,0.0018538]
[1736931743191,0.76910472,97366.0,97365.0,0.0008538]
[1736931743409,0.77310472,97366.0,97365.0,0.0008538]
[1736931743616,0.77610472,97366.0,97365.0,0.0008538]
[1736931743819,0.77110472,97366.0,97365.0,0.0008538]
[1736931744026,0.4282,97362.0,97361.0,0.0203542]
[1736931744235,0.63572377,97362.0,97361.0,0.0203542]
[1736931744450,0.53572377,97362.0,97361.0,0.0203542]
[1736931744867,0.62780649,97362.0,97361.0,0.0203542]
[1736931745287,0.62980649,97362.0,97361.0,0.0203542]
[1736931745490,0.73403341,97362.0,97361.0,0.0203542]
[1736931745901,0.64195069,97362.0,97361.0,0.0203542]
[1736931746118,0.61465384,97362.0,97361.0,0.0203542]
[1736931746994,0.64695069,97362.0,97361.0,0.0203542]
[1736931747611,0.61465384,97362.0,97361.0,0.0203542]
[1736931749168,0.51465384,97362.0,97361.0,0.0203542]
[1736931749321,0.61465384,97362.0,97361.0,0.0203542]
[1736931758363,0.64695069,97362.0,97361.0,0.0203542]
[1736931758820,0.64695069,97362.0,97361.0,2e-07]
[1736931758969,2.12093684,97362.0,97361.0,2e-07]
[1736931759291,0.64695069,97362.0,97361.0,2e-07]
[1736931760123,0.61465384,97362.0,97361.0,2e-07]
[1736931760486,0.60960991,97362.0,97361.0,2e-07]
[1736931760915,0.93940991,97362.0,97361.0,2e-07]
[1736931762113,0.93589052,97362.0,97361.0,2e-07]
[1736931762970,0.95145376,97362.0,97361.0,2e-07]
[1736931763195,0.205442,97351.0,97350.0,0.25175773]
[1736931763398,0.33266892,97351.0,97350.0,0.25175773]
[1736931764165,0.39647911,97351.0,97350.0,0.25175773]
[1736931764474,0.39647911,97351.0,97350.0,0.25190595]
[1736931765061,0.54747911,97351.0,97350.0,0.25190595]
[1736931765465,0.54847911,97351.0,97350.0,0.25190595]
[1736931766314,0.56459278,97351.0,97350.0,0.25190595]
[1736931766517,0.54847911,97351.0,97350.0,0.25190595]
[1736931767661,0.55903135,97351.0,97350.0,0.25190595]
[1736931770759,0.57514489,97351.0,97350.0,0.25190595]
[1736931772379,0.55903135,97351.0,97350.0,0.25190595]
[1736931772587,0.55803135,97351.0,97350.0,0.25190595]
[1736931773372,0.55903135,97351.0,97350.0,0.25190595]
[1736931774213,0.73443135,97351.0,97350.0,0.25190595]
[1736931774376,0.7667282,97351.0,97350.0,0.25190595]
[1736931774957,0.73343135,97351.0,97350.0,0.25190595]
[1736931775391,0.74854645,97351.0,97350.0,0.25190595]
[1736931775630,0.88687452,97351.0,97350.0,0.25190595]
[1736931775811,0.87075942,97351.0,97350.0,0.25190595]
[1736931776015,0.87675942,97351.0,97350.0,0.25190595]
[1736931776212,0.87375942,97351.0,97350.0,0.25190595]
[1736931776665,0.87675942,97351.0,97350.0,0.25276005]
[1736931776876,0.87855304,97351.0,97350.0,0.25276005]
[1736931777058,0.74322497,97351.0,97350.0,0.25276005]
[1736931777925,0.74322497,97351.0,97350.0,0.24816383]
[1736931778685,0.76364572,97351.0,97350.0,0.24816383]
[1736931779091,0.94808315,97351.0,97350.0,0.24816383]
[1736931779835,0.99419251,97351.0,97350.0,0.24816383]
[1736931780224,1.0103082,97351.0,97350.0,0.24816383]
[1736931780429,0.75934066,97351.0,97350.0,0.24816383]
[1736931780641,0.75934066,97351.0,97350.0,0.24297928]
[1736931781231,0.75934066,97351.0,97350.0,0.23675528]
[1736931782076,0.99011388,97351.0,97350.0,0.23675528]
[1736931782251,0.99011388,97351.0,97350.0,0.22884019]
[1736931782687,0.99011388,97351.0,97350.0,0.00564019]
[1736931782928,0.75934066,97351.0,97350.0,0.00564019]
[1736931783161,0.378461,97342.0,97331.0,0.0008536]
[1736931783387,0.55107962,97342.0,97341.0,0.00044928]
[1736931784563,0.55207962,97342.0,97341.0,0.00044928]
[1736931784789,0.58637647,97342.0,97341.0,0.00044928]
[1736931785021,0.55407962,97342.0,97341.0,0.00044928]
[1736931788229,0.5701966,97342.0,97341.0,0.00044928]
[1736931788438,0.5701966,97342.0,97341.0,0.00130338]
[1736931789442,0.55407962,97342.0,97341.0,0.00130338]
[1736931792695,0.57019601,97342.0,97341.0,0.00130338]
[1736931793150,0.55407962,97342.0,97341.0,0.00130338]
[1736931794832,0.205497,97325.0,97324.0,0.04551698]
[1736931795013,0.355497,97325.0,97324.0,0.04600964]
[1736931796265,0.355497,97325.0,97324.0,0.04700964]
[1736931796759,0.355497,97325.0,97324.0,0.04600964]
[1736931797170,0.355497,97325.0,97324.0,0.04800964]
[1736931797433,0.378497,97325.0,97324.0,0.04800964]
[1736931797637,0.379497,97325.0,97324.0,0.04900964]
[1736931797844,0.378497,97325.0,97324.0,0.04800964]
[1736931798056,0.379497,97325.0,97324.0,0.04900964]
[1736931798273,0.379497,97325.0,97324.0,0.04700964]
[1736931798449,0.378497,97325.0,97324.0,0.04600964]
[1736931798655,0.378497,97325.0,97324.0,0.04700964]
[1736931799139,0.378497,97325.0,97324.0,0.04600964]
[1736931800125,0.379497,97325.0,97324.0,0.04686374]
[1736931800334,0.379497,97325.0,97324.0,0.04786374]
[1736931800559,0.379497,97325.0,97324.0,0.04686374]
[1736931800848,0.379497,97325.0,97324.0,0.04786374]
[1736931801049,0.380497,97325.0,97324.0,0.04786374]
[1736931801273,0.380497,97325.0,97324.0,0.04686374]
[1736931801425,0.39761366,97325.0,97324.0,0.04786374]
[1736931801862,0.39661366,97325.0,97324.0,0.04786374]
[1736931802278,0.39461366,97325.0,97324.0,0.04786374]
[1736931802678,0.39461366,97325.0,97324.0,0.04686374]
[1736931803076,0.39461366,97325.0,97324.0,0.04886374]
[1736931803691,0.39461366,97325.0,97324.0,0.00334676]
[1736931804177,0.39561366,97325.0,97324.0,0.00434676]
[1736931804346,0.47728304,97325.0,97324.0,0.00434676]
[1736931804522,0.47628304,97325.0,97324.0,0.00334676]
[1736931804706,0.47628304,97325.0,97324.0,0.00434676]
[1736931804918,0.47628304,97325.0,97324.0,0.00234676]
[1736931805320,0.47728304,97325.0,97324.0,0.00234676]
[1736931805746,0.46016638,97325.0,97324.0,0.00234676]
[1736931806140,0.46016638,97325.0,97324.0,0.00334676]
[1736931808792,0.47628339,97325.0,97324.0,0.00334676]
[1736931808993,0.39461401,97325.0,97324.0,0.00334676]
[1736931810204,0.378497,97325.0,97324.0,0.00334676]
[1736931812222,0.38029103,97325.0,97324.0,0.00334676]
[1736931812650,0.35729103,97325.0,97324.0,0.00334676]
[1736931813567,0.35729103,97325.0,97324.0,0.08434676]
[1736931813568,0.01791077,97325.0,97324.0,0.08434676]
[1736931813774,0.01791077,97325.0,97324.0,0.13394676]
[1736931813988,0.01791077,97325.0,97324.0,0.14926512]
[1736931814217,0.01791077,97325.0,97324.0,0.47496512]
[1736931814414,0.01778711,97325.0,97324.0,0.57816467]
[1736931814638,0.00167037,97325.0,97324.0,0.67816467]
[1736931814839,0.09247923,97337.0,97336.0,0.1]
[1736931815044,0.09247923,97337.0,97336.0,0.66012692]
[1736931815252,0.01611563,97356.0,97350.0,0.205444]
[1736931815471,0.01611563,97356.0,97350.0,0.53987092]
[1736931815668,0.01611563,97356.0,97350.0,0.54445756]
[1736931815878,0.01611563,97356.0,97350.0,0.53987092]
[1736931816284,0.13871884,97394.0,97350.0,0.53987092]
[1736931816483,0.01610963,97355.0,97350.0,0.53987092]
[1736931816685,0.01610963,97355.0,97350.0,0.54951445]
[1736931816918,0.01610963,97355.0,97350.0,0.5610489]
[1736931817119,0.01610963,97355.0,97350.0,0.56875829]
[1736931817390,0.01610963,97355.0,97350.0,0.56775829]
[1736931817693,0.01610963,97355.0,97350.0,0.57875829]
[1736931817895,0.00279362,97351.0,97350.0,0.57875829]
[1736931818513,0.00179362,97351.0,97350.0,0.57175829]
[1736931818654,0.00179362,97351.0,97350.0,0.67175829]
[1736931818860,0.00179362,97351.0,97350.0,0.66775829]
[1736931819064,0.00179362,97351.0,97350.0,0.67175829]
[1736931819474,0.00279362,97351.0,97350.0,0.67475829]
[1736931819931,0.00279362,97351.0,97350.0,0.67875829]
[1736931820788,0.00279362,97351.0,97350.0,1.54905829]
[1736931821492,0.00279362,97351.0,97350.0,1.43852384]
[1736931821717,0.00279362,97351.0,97350.0,1.43152384]
[1736931821866,0.00179362,97351.0,97350.0,1.43152384]
[1736931822140,0.00279362,97351.0,97350.0,1.43552384]
[1736931822347,0.00279362,97351.0,97350.0,1.33552384]
[1736931822558,0.00279362,97351.0,97350.0,1.32781445]
[1736931823122,0.00279362,97351.0,97350.0,1.09338753]
[1736931823631,0.00279362,97351.0,97350.0,1.083744]
[1736931823832,0.0189024,97351.0,97350.0,1.083744]
[1736931824267,0.0189024,97351.0,97350.0,0.8783]
[1736931824446,0.0179024,97351.0,97350.0,0.8743]
[1736931824640,0.0189024,97351.0,97350.0,0.8783]
[1736931825449,0.0179024,97351.0,97350.0,0.8703]
[1736931825669,0.0179024,97351.0,97350.0,0.8743]
[1736931825828,0.0189024,97351.0,97350.0,0.8773]
[1736931826235,0.0189024,97351.0,97350.0,0.8743]
[1736931826636,0.0189024,97351.0,97350.0,0.007]
[1736931827477,0.0189024,97351.0,97350.0,0.01041764]
[1736931832558,0.0189024,97351.0,97350.0,0.01144477]
[1736931832737,0.0189024,97351.0,97350.0,0.08744477]
[1736931833513,0.0189024,97351.0,97350.0,0.23704456]
[1736931833717,0.0189024,97351.0,97350.0,0.13281764]
[1736931833922,0.00279362,97351.0,97350.0,0.13281764]
[1736931834333,0.00279362,97351.0,97350.0,0.05681764]
[1736931835248,0.00279362,97351.0,97350.0,0.0578447]
[1736931835390,5.97e-06,97351.0,97350.0,0.1578447]
[1736931836053,5.97e-06,97351.0,97350.0,0.26207162]
[1736931836259,5.97e-06,97351.0,97350.0,1.30734456]
[1736931836668,5.97e-06,97351.0,97350.0,1.31786729]
[1736931837313,0.01611439,97351.0,97350.0,1.31786729]
[1736931837486,5.97e-06,97351.0,97350.0,1.31786729]
[1736931837787,0.00179341,97365.0,97364.0,0.631114]
[1736931838444,0.00179341,97365.0,97364.0,0.95774092]
[1736931838650,0.00179341,97365.0,97364.0,0.96731686]
[1736931839241,0.00292531,97365.0,97364.0,0.97631686]
[1736931839772,0.00292531,97365.0,97364.0,0.9916392]
[1736931840403,0.00292531,97365.0,97364.0,1.01155708]
[1736931840606,0.00292531,97365.0,97364.0,1.00955708]
[1736931840761,0.00192531,97365.0,97364.0,1.00255708]
[1736931841215,0.00192531,97365.0,97364.0,1.14922725]
[1736931841428,0.00192531,97365.0,97364.0,1.15322725]
[1736931841626,0.018032,97365.0,97364.0,1.69782725]
[1736931841830,0.018032,97365.0,97364.0,1.70803536]
[1736931842072,0.018032,97365.0,97364.0,1.57036519]
[1736931842495,0.00192531,97365.0,97364.0,1.57036519]
[1736931843734,0.00192531,97365.0,97364.0,1.57600519]
[1736931844877,0.00167021,97382.0,97381.0,0.205378]
[1736931845325,0.01777572,97382.0,97381.0,0.205378]
[1736931845771,0.00167021,97382.0,97381.0,0.205378]
[1736931846252,0.00167021,97382.0,97381.0,0.21495394]
[1736931847223,0.00167021,97382.0,97381.0,0.21895394]
[1736931847704,0.00167021,97382.0,97381.0,0.54565394]
[1736931849190,0.08007021,97382.0,97381.0,0.34027594]
[1736931850174,0.08007021,97382.0,97381.0,0.33927594]
[1736931850411,0.08107021,97382.0,97381.0,0.3297]
[1736931850874,0.08007021,97382.0,97381.0,0.3257]
[1736931851342,0.205397,97372.0,97371.0,0.00957594]
[1736931851590,0.283797,97372.0,97371.0,0.00957594]
[1736931852224,0.283797,97372.0,97352.0,0.205439]
[1736931852225,0.20541,97366.0,97353.0,0.3257]
[1736931852228,0.205421,97361.0,97353.0,0.3257]
[1736931852462,0.20542,97362.0,97353.0,0.3258319]
[1736931852964,0.01610918,97360.0,97353.0,0.3258319]
[1736931854099,0.01610918,97360.0,97354.0,0.205435]
[1736931855389,0.01610918,97360.0,97354.0,0.210435]
[1736931855764,0.01610918,97360.0,97354.0,0.212435]
[1736931856591,0.0784,97372.0,97359.0,0.205425]
[1736931856814,0.0784,97372.0,97360.0,0.001027]
[1736931857051,0.0784,97372.0,97360.0,0.205423]
[1736931857282,0.0784,97372.0,97361.0,0.00959168]
[1736931858182,0.0784,97372.0,97362.0,0.205418]
[1736931858695,0.0784,97372.0,97363.0,0.00959168]
[1736931859900,0.0784,97372.0,97361.0,0.09172504]
[1736931860699,0.0784,97372.0,97362.0,0.001]
[1736931860944,0.0784,97372.0,97363.0,0.09172504]
[1736931861174,0.01610946,97370.0,97363.0,0.09172504]
[1736931862577,0.01610946,97370.0,97363.0,0.09272504]
[1736931862771,0.01610946,97370.0,97363.0,0.001]
[1736931862914,0.0784,97372.0,97364.0,0.205414]
[1736931863117,0.0784,97372.0,97364.0,0.00960016]
[1736931863601,0.0784,97372.0,97364.0,0.1013252]
[1736931864030,0.0783,97372.0,97364.0,0.1023252]
[1736931864423,0.0783,97372.0,97364.0,0.001]
[1736931865322,0.0783,97372.0,97365.0,0.0096018]
[1736931866073,0.01610932,97371.0,97365.0,0.0096018]
[1736931866304,0.0783,97372.0,97365.0,0.0096018]
[1736931866538,0.0783,97372.0,97364.0,0.001]
[1736931866791,0.0783,97372.0,97361.0,0.29714404]
[1736931867133,0.0783,97372.0,97365.0,0.001]
[1736931867403,0.0783,97372.0,97361.0,0.29714404]
[1736931867608,0.0783,97372.0,97364.0,0.001]
[1736931868203,0.0783,97372.0,97361.0,0.205419]
[1736931868456,0.0783,97372.0,97365.0,0.00960234]
[1736931870310,0.0783,97372.0,97361.0,0.205419]
[1736931870517,0.01610929,97371.0,97361.0,0.205419]
[1736931871132,0.01610929,97371.0,97365.0,0.002]
[1736931871345,0.01610929,97371.0,97365.0,0.007]
[1736931871685,0.01610929,97371.0,97362.0,0.00960255]
[1736931872505,0.01610929,97371.0,97363.0,0.00960255]
[1736931872655,0.0783,97372.0,97363.0,0.00960255]
[1736931873101,0.0783,97372.0,97365.0,0.205412]
[1736931873531,0.08009341,97372.0,97365.0,0.205412]
[1736931874019,0.08009341,97372.0,97366.0,0.20541]
[1736931874246,0.08009341,97372.0,97365.0,0.205412]
[1736931874462,0.08009341,97372.0,97365.0,0.005]
[1736931875805,0.01610895,97371.0,97365.0,0.005]
[1736931876275,0.08009341,97372.0,97366.0,0.00960646]
[1736931876795,0.28549241,97372.0,97366.0,0.00960646]
[1736931877753,0.28549241,97372.0,97366.0,0.005]
[1736931877991,0.28549241,97372.0,97363.0,0.3257]
[1736931877992,0.15,97368.0,97363.0,0.3257]
[1736931878231,0.15,97366.0,97363.0,0.3257]
[1736931878469,0.15,97364.0,97363.0,0.3257]
[1736931879952,0.152,97364.0,97363.0,0.3257]
[1736931880166,0.15,97364.0,97363.0,0.3257]
[1736931880397,0.15,97364.0,97363.0,0.3267]
[1736931880623,0.16611025,97364.0,97363.0,0.003]
[1736931885433,0.16611025,97364.0,97363.0,0.0038539]
[1736931893815,0.18911025,97364.0,97363.0,0.0038539]
[1736931895276,0.18911025,97364.0,97363.0,0.0008539]
[1736931896152,0.18911025,97364.0,97363.0,0.0018539]
[1736931898586,0.18911025,97364.0,97363.0,0.0008539]
[1736931899196,0.18911025,97364.0,97363.0,0.0028539]
[1736931899557,0.18911025,97364.0,97363.0,0.0008539]
[1736931899758,0.18911025,97364.0,97363.0,0.0028539]
[1736931900184,0.18911025,97364.0,97363.0,0.0008539]
[1736931901475,0.18911025,97364.0,97363.0,0.0028539]
[1736931901678,0.18911025,97364.0,97363.0,0.0008539]
[1736931902082,0.18911025,97364.0,97363.0,0.0028539]
[1736931902485,0.18911025,97364.0,97363.0,0.0008539]
[1736931902707,0.18911025,97364.0,97363.0,0.0028539]
[1736931903234,0.18911025,97364.0,97363.0,0.0008539]
[1736931903434,0.18911025,97364.0,97363.0,0.0028539]
[1736931904640,0.18911025,97364.0,97363.0,0.0008539]
[1736931904823,0.18911025,97364.0,97363.0,0.0028539]
[1736931905228,0.18911025,97364.0,97363.0,0.0008539]
[1736931905407,0.18911025,97364.0,97363.0,0.0028539]
[1736931905810,0.18911025,97364.0,97363.0,0.0008539]
[1736931906012,0.18911025,97364.0,97363.0,0.0028539]
[1736931906410,0.18911025,97364.0,97363.0,0.0008539]
[1736931907750,0.18911025,97364.0,97363.0,0.0028539]
[1736931907942,0.18911025,97364.0,97363.0,0.0008539]
[1736931908141,0.4463302,97364.0,97363.0,0.0008539]
[1736931908552,0.4463302,97364.0,97363.0,0.0028539]
[1736931908763,0.4463302,97364.0,97363.0,0.0008539]
[1736931908955,0.4463302,97364.0,97363.0,0.0028539]
[1736931909163,0.4463302,97364.0,97363.0,0.0008539]
[1736931909479,0.4483302,97364.0,97363.0,0.0008539]
[1736931909696,0.43221995,97364.0,97363.0,0.0008539]
[1736931910361,0.47881995,97364.0,97363.0,0.0008539]
[1736931910701,0.47781995,97364.0,97363.0,0.0008539]
[1736931911104,0.47881995,97364.0,97363.0,0.0008539]
[1736931911718,0.47681995,97364.0,97363.0,0.0008539]
[1736931912096,0.48181995,97364.0,97363.0,0.0008539]
[1736931912295,0.47881995,97364.0,97363.0,0.0008539]
[1736931912494,0.47681995,97364.0,97363.0,0.0008539]
[1736931912698,0.47981995,97364.0,97363.0,0.0008539]
[1736931913955,0.48181995,97364.0,97363.0,0.0008539]
[1736931917026,0.49793236,97364.0,97363.0,0.0008539]
[1736931919357,0.42543933,97364.0,97363.0,0.0008539]
[1736931921041,0.40932692,97364.0,97363.0,0.0008539]
[1736931921445,0.40732692,97364.0,97363.0,0.0008539]
[1736931921658,0.40432692,97364.0,97363.0,0.0008539]
[1736931921847,0.40932692,97364.0,97363.0,0.0008539]
[1736931922270,0.49134161,97364.0,97363.0,0.0008539]
[1736931922441,0.49334161,97364.0,97363.0,0.0008539]
[1736931923133,0.49134161,97364.0,97363.0,0.0008539]
[1736931923560,0.49234161,97364.0,97363.0,0.0008539]
[1736931927584,0.50845375,97364.0,97363.0,0.0008539]
[1736931930447,0.50745375,97364.0,97363.0,0.0008539]
[1736931930848,0.50345375,97364.0,97363.0,0.0008539]
[1736931931053,0.205455,97345.0,97341.0,0.13504698]
[1736931931471,0.205459,97343.0,97341.0,0.09172504]
[1736931931795,0.205459,97343.0,97342.0,0.00963007]
[1736931933006,0.205459,97343.0,97337.0,0.0008542]
[1736931933258,0.205459,97343.0,97342.0,0.001]
[1736931933948,0.21591035,97343.0,97337.0,0.0008542]
[1736931934153,0.21591035,97343.0,97342.0,0.002]
[1736931934973,0.21591035,97343.0,97337.0,0.0008542]
[1736931935143,0.21591035,97343.0,97337.0,0.0038542]
[1736931935319,0.205459,97343.0,97337.0,0.0038542]
[1736931935518,0.22845,97347.0,97337.0,0.0038542]
[1736931935723,0.22845,97347.0,97338.0,0.00963468]
[1736931936193,0.205454,97345.0,97338.0,0.00963468]
[1736931936637,0.205454,97345.0,97338.0,0.10135972]
[1736931936848,0.205454,97345.0,97342.0,0.002]
[1736931937321,0.205454,97345.0,97338.0,0.10135972]
[1736931937526,0.205454,97345.0,97338.0,0.002]
[1736931937758,0.205454,97345.0,97337.0,0.0008542]
[1736931937961,0.27789777,97345.0,97342.0,0.002]
[1736931938405,0.29401091,97345.0,97337.0,0.0008542]
[1736931939145,0.29401091,97345.0,97337.0,0.09257924]
[1736931939345,0.29401091,97345.0,97338.0,0.00963981]
[1736931939544,0.49946691,97345.0,97338.0,0.00963981]
[1736931939728,0.205459,97343.0,97338.0,0.00963981]
[1736931940830,0.01931722,97344.0,97339.0,0.00963981]
[1736931941726,0.01931722,97344.0,97340.0,0.00963981]
[1736931941924,0.205459,97343.0,97340.0,0.00963981]
[1736931942336,0.206459,97343.0,97340.0,0.00963981]
[1736931942763,0.205459,97343.0,97340.0,0.00963981]
[1736931943197,0.205459,97343.0,97340.0,0.01063981]
[1736931943406,0.205459,97343.0,97341.0,0.00963981]
[1736931944615,0.205459,97343.0,97342.0,0.00963981]
[1736931946231,0.205459,97343.0,97342.0,0.01063981]
[1736931946794,0.205459,97343.0,97342.0,0.01363981]
[1736931947522,0.22157205,97343.0,97342.0,0.01363981]
[1736931950293,0.01611305,97343.0,97342.0,0.01363981]
[1736931952078,0.01611305,97343.0,97342.0,0.10536485]
[1736931953521,0.01611305,97343.0,97342.0,0.01363981]
[1736931954309,0.01611305,97343.0,97342.0,0.15122738]
[1736931955268,0.637498,97348.0,97342.0,0.01363981]
[1736931956030,0.637498,97348.0,97345.0,0.0925596]
[1736931956836,0.637498,97348.0,97347.0,0.1839872]
[1736931957264,0.63737437,97348.0,97347.0,0.1839872]
[1736931957800,0.63737437,97348.0,97347.0,0.00963981]
[1736931959472,0.63737437,97348.0,97347.0,0.01063981]
[1736931959672,0.65348698,97348.0,97347.0,0.01063981]
[1736931959890,0.65348698,97348.0,97347.0,0.14945239]
[1736931960682,0.65348698,97348.0,97347.0,0.15145239]
[1736931960866,0.65348698,97348.0,97347.0,0.01263981]
[1736931962447,0.57701061,97348.0,97347.0,0.01263981]
[1736931963417,0.57701061,97348.0,97347.0,0.15144442]
[1736931965640,0.37156161,97348.0,97347.0,0.15144442]
[1736931966459,0.37156161,97348.0,97347.0,0.14844442]
[1736931966680,0.01611261,97348.0,97347.0,0.14844442]
[1736931966888,0.01611261,97348.0,97347.0,0.15144442]
[1736931967091,0.00179319,97350.0,97347.0,0.15144442]
[1736931967844,0.00179319,97350.0,97347.0,0.15244442]
[1736931968046,0.00179319,97350.0,97348.0,0.00963981]
[1736931968701,0.00179319,97350.0,97348.0,0.19362701]
[1736931969024,0.00179319,97350.0,97349.0,0.205446]
[1736931969243,0.00179319,97350.0,97349.0,0.28747314]
[1736931969458,0.00179319,97350.0,97349.0,0.286446]
[1736931969714,0.00179319,97350.0,97349.0,0.29608581]
[1736931969939,0.00179319,97350.0,97349.0,0.42041858]
[1736931970177,0.00179319,97350.0,97349.0,0.99795858]
[1736931970401,0.00190477,97364.0,97363.0,0.205416]
[1736931970628,0.00190477,97364.0,97363.0,0.43786977]
[1736931970856,0.00190477,97364.0,97363.0,1.50714292]
[1736931971067,0.00190477,97364.0,97363.0,1.53918501]
[1736931971283,0.00167021,97382.0,97371.0,1.275699]
[1736931971515,0.00184278,97372.0,97371.0,1.46846592]
[1736931972140,0.00184278,97372.0,97371.0,1.48850015]
[1736931972350,0.00184278,97372.0,97371.0,1.63850015]
[1736931972557,0.00184278,97372.0,97371.0,1.64887326]
[1736931972758,0.00284278,97372.0,97371.0,2.07278931]